bitfinex-derivatives/quotes_ETHF0:USTF0_20241105
["timestamp","ask_amount","ask_price","bid_price","bid_amount"]
[1730819713462,4.25662624,2459.9,2458.4,7.6014336]
[1730819713662,4.25662624,2459.9,2459.6,4.3936336]
[1730819713861,1.58573767,2460.5,2459.9,0.40661]
[1730819713862,0.40653,2460.5,2459.9,0.40661]
[1730819714053,3.2078,2460.7,2459.9,4.3936336]
[1730819714260,3.2078,2460.7,2459.9,7.6014336]
[1730819714461,3.61429,2460.7,2460.1,0.40658]
[1730819714661,0.4065,2460.6,2460.0,0.40659]
[1730819714854,3.2078,2460.7,2459.9,7.6014336]
[1730819715055,0.40645,2460.9,2460.2,0.40656]
[1730819715269,5.8231,2461.0,2459.9,7.79935399]
[1730819715562,5.8231,2461.0,2460.1,0.40658]
[1730819715563,0.05579698,2460.5,2460.1,0.40658]
[1730819715760,0.05579698,2460.5,2460.2,0.40657]
[1730819715960,0.05579698,2460.5,2459.9,7.79935399]
[1730819716159,0.05579698,2460.5,2459.9,7.6014336]
[1730819716362,0.40654,2460.4,2459.9,7.6014336]
[1730819716555,0.05579698,2460.2,2459.9,7.6014336]
[1730819716757,0.05579698,2460.2,2460.0,0.4066]
[1730819716958,0.05579698,2460.2,2460.0,4.0648]
[1730819717158,0.05579698,2460.2,2460.1,4.0648]
[1730819717363,3.2078,2460.7,2460.0,4.0648]
[1730819717661,3.05041,2461.2,2460.7,0.40648]
[1730819718260,2.644,2461.2,2460.5,2.7109]
[1730819718667,2.644,2461.2,2460.6,3.2078]
[1730819718864,0.40646,2460.9,2460.6,3.2078]
[1730819719069,0.40645,2461.0,2460.6,3.2078]
[1730819719269,2.644,2461.2,2460.6,3.2078]
[1730819719567,0.40645,2461.0,2460.6,3.2078]
[1730819719772,0.40644,2461.0,2460.6,3.61429]
[1730819720065,0.40648,2460.8,2460.6,3.2078]
[1730819720259,2.644,2461.2,2460.3,3.4009276]
[1730819720260,0.4065,2460.6,2460.3,3.4009276]
[1730819720462,0.40653,2460.5,2460.3,3.2078]
[1730819720764,3.2078,2460.9,2460.1,4.3936336]
[1730819721064,0.40652,2460.5,2460.1,4.8002136]
[1730819721275,0.40649,2460.7,2460.1,4.3936336]
[1730819721458,3.2078,2460.7,2459.8,7.1064336]
[1730819721661,0.40661,2460.0,2459.8,7.1064336]
[1730819721862,3.2078,2460.4,2459.8,7.1064336]
[1730819722062,0.40662,2459.9,2459.8,4.3936336]
[1730819722266,0.40659,2460.1,2459.8,4.3936336]
[1730819722568,0.40658,2460.2,2459.8,4.8002636]
[1730819722872,0.40656,2460.3,2459.9,3.61441]
[1730819723058,3.2078,2460.4,2459.9,3.2078]
[1730819723371,0.40658,2460.1,2459.8,4.3936336]
[1730819723568,0.40657,2460.2,2459.8,4.8002636]
[1730819724068,41.20657,2460.2,2459.8,4.8002636]
[1730819724471,0.40654,2460.4,2460.0,0.4066]
[1730819724766,4.22402,2460.7,2459.8,4.3936336]
[1730819724970,1.01643,2460.2,2459.6,3.2078]
[1730819725267,0.40665,2459.7,2459.6,3.2078]
[1730819725461,0.40673,2459.2,2458.9,5.829]
[1730819725661,4.0656,2460.1,2458.9,5.829]
[1730819725662,0.40677,2459.0,2458.9,5.829]
[1730819725968,3.08176624,2460.1,2458.6,2.6361]
[1730819725969,0.40681,2458.8,2458.6,2.6361]
[1730819726169,0.40679,2458.9,2458.6,2.6361]
[1730819726367,0.40675,2459.1,2458.7,0.4068]
[1730819726566,0.40674,2459.2,2458.8,4.3936336]
[1730819726869,40.8,2459.4,2458.8,4.3936336]
[1730819727061,6.97162624,2459.7,2459.1,4.3936336]
[1730819727262,3.2078,2459.3,2458.8,4.3936336]
[1730819727470,3.61452,2459.3,2458.9,0.40678]
[1730819727667,3.2078,2459.3,2459.1,4.3936336]
[1730819727874,3.61452,2459.3,2459.1,4.3936336]
[1730819728066,3.2078,2459.3,2459.2,4.0664]
[1730819728468,3.61452,2459.3,2458.9,3.61457]
[1730819728673,3.2078,2459.3,2458.8,4.3936336]
[1730819728871,2.715,2459.7,2458.4,2.5957]
[1730819728872,0.4068,2458.8,2458.4,7.18503845]
[1730819729077,0.40683,2458.7,2458.4,6.9893336]
[1730819729274,0.40681,2458.8,2458.4,7.3961836]
[1730819729466,3.76482624,2459.2,2458.4,6.9893336]
[1730819729771,0.40684,2458.6,2458.4,6.9893336]
[1730819730074,0.40689,2458.3,2458.1,2.7923]
[1730819730271,0.40689,2458.3,2458.0,3.2078]
[1730819730469,3.2078,2458.6,2458.0,3.2078]
[1730819730665,0.40691,2458.2,2458.0,3.2078]
[1730819730871,3.2078,2458.3,2457.8,4.3936336]
[1730819731076,0.40694,2458.0,2457.6,3.6148]
[1730819731265,3.2078,2458.3,2457.6,3.6148]
[1730819731471,0.40692,2458.1,2457.6,3.6148]
[1730819731970,3.2078,2458.3,2457.7,4.3936336]
[1730819732173,3.2078,2458.3,2458.1,4.3936336]
[1730819732478,3.2078,2458.3,2458.1,4.8005436]
[1730819732670,3.2078,2458.3,2458.1,8.4616336]
[1730819732878,0.40683,2458.7,2458.2,4.47488]
[1730819733074,0.4068,2458.8,2458.2,3.2078]
[1730819733268,0.40686,2458.5,2458.2,3.2078]
[1730819733574,5.7913,2458.9,2457.5,8.2521]
[1730819733575,0.40689,2458.3,2457.9,0.40695]
[1730819733773,0.40689,2458.3,2457.8,3.61475]
[1730819733970,0.40689,2458.3,2457.9,0.40694]
[1730819734467,0.40685,2458.5,2457.9,0.40694]
[1730819734669,3.2078,2458.6,2457.8,3.2078]
[1730819734875,3.2078,2458.3,2457.8,3.2078]
[1730819735272,3.2078,2457.9,2457.4,4.3936336]
[1730819735480,3.2078,2457.9,2457.0,10.168]
[1730819735481,3.2078,2457.9,2456.8,11.3567]
[1730819735779,0.4071,2457.0,2456.8,5.4967]
[1730819735973,0.4071,2457.0,2456.7,4.3936336]
[1730819735974,0.40711,2457.0,2456.7,4.3936336]
[1730819736175,0.40711,2457.0,2456.6,0.19347389]
[1730819736373,0.40712,2456.9,2456.6,3.40127389]
[1730819736572,0.40712,2456.9,2456.6,3.2078]
[1730819736869,0.40709,2457.1,2456.6,3.61496]
[1730819737174,0.40711,2457.0,2456.6,3.2078]
[1730819737371,0.40713,2456.9,2456.6,3.2078]
[1730819737870,0.40715,2456.7,2456.3,4.3936336]
[1730819738176,3.2078,2457.0,2456.4,0.40719]
[1730819738177,0.40713,2456.9,2456.4,0.40719]
[1730819738484,3.2078,2457.0,2456.3,4.3936336]
[1730819738772,3.2078,2456.5,2455.6,4.3936336]
[1730819738979,3.2078,2456.5,2455.3,3.2078]
[1730819738980,3.2078,2456.2,2455.3,8.0088036]
[1730819739176,0.40728,2456.0,2455.3,7.6014336]
[1730819739373,0.40731,2455.8,2455.2,0.40739]
[1730819739570,3.61509,2455.9,2455.3,0.40738]
[1730819739769,3.2078,2455.9,2455.3,4.3936336]
[1730819739968,44.44779,2456.9,2455.1,5.5461]
[1730819739969,3.2078,2456.5,2455.7,4.3936336]
[1730819740173,3.2078,2456.5,2456.1,4.3936336]
[1730819740374,3.2078,2456.5,2455.8,3.2078]
[1730819740574,0.4072,2456.4,2455.8,3.61509]
[1730819740875,3.2078,2456.5,2456.1,4.3936336]
[1730819741078,2.1143169,2457.1,2456.4,4.8008236]
[1730819741079,3.2078,2457.0,2456.4,4.8008236]
[1730819741377,3.2078,2457.0,2456.4,7.6014336]
[1730819741575,3.61491,2457.0,2456.4,7.6014336]
[1730819741778,2.1143169,2457.1,2456.4,7.6014336]
[1730819741982,2.1143169,2457.1,2456.6,0.40715]
[1730819742279,2.1143169,2457.1,2456.8,0.40713]
[1730819742478,2.1143169,2457.1,2456.7,7.6014336]
[1730819742877,2.1143169,2457.1,2457.0,0.4071]
[1730819743081,2.1143169,2457.1,2457.0,8.0085336]
[1730819743378,4.2286338,2457.3,2457.2,0.40706]
[1730819743579,4.2286338,2457.3,2457.2,4.47666]
[1730819743880,3.70005458,2457.7,2457.5,0.40701]
[1730819744077,3.70005458,2457.7,2457.5,4.3936336]
[1730819744280,3.70005458,2457.7,2457.5,8.8694436]
[1730819744779,3.2078,2458.3,2457.7,0.40697]
[1730819744970,3.2078,2458.6,2457.5,4.3936336]
[1730819745174,3.2078,2458.6,2457.1,2.7887]
[1730819745175,3.61464,2458.6,2457.9,4.3936336]
[1730819745370,3.2078,2458.6,2458.0,3.2078]
[1730819745781,0.40689,2458.3,2458.0,3.2078]
[1730819745989,0.4069,2458.2,2458.0,3.2078]
[1730819746475,0.40689,2458.3,2458.0,3.2078]
[1730819746871,0.40686,2458.5,2458.0,3.2078]
[1730819747077,3.2078,2458.6,2458.0,3.2078]
[1730819747078,0.40689,2458.3,2458.0,3.2078]
[1730819747688,3.2078,2458.6,2457.6,3.2078]
[1730819748175,0.40693,2458.1,2457.6,3.2078]
[1730819748371,0.40695,2457.9,2457.6,3.2078]
[1730819748573,0.40695,2457.9,2457.3,3.2078]
[1730819748776,3.2078,2458.2,2457.3,3.2078]
[1730819749081,0.40695,2458.0,2457.4,0.40702]
[1730819749282,0.40698,2457.8,2457.3,3.2078]
[1730819749479,3.2078,2457.9,2457.3,3.2078]
[1730819749680,0.40701,2457.6,2457.3,3.2078]
[1730819749871,40.8,2457.5,2457.3,3.61484]
[1730819750177,2.5762,2458.1,2457.3,3.2078]
[1730819750386,2.5762,2458.1,2456.9,0.4071]
[1730819750387,0.40704,2457.4,2456.9,0.4071]
[1730819750682,3.2078,2457.9,2456.8,6.9631336]
[1730819750883,3.2078,2457.9,2457.0,3.2078]
[1730819751376,3.2078,2457.5,2456.6,3.2078]
[1730819751679,0.40709,2457.1,2456.6,3.61496]
[1730819751886,0.4071,2457.0,2456.6,3.61496]
[1730819752179,3.2078,2457.5,2456.6,3.2078]
[1730819752380,0.40715,2456.8,2456.3,6.44101]
[1730819752584,0.40715,2456.7,2456.3,6.44101]
[1730819752884,0.40714,2456.8,2456.4,0.40719]
[1730819753079,3.2078,2457.2,2456.3,3.2332]
[1730819753277,1.01758,2457.4,2456.3,3.2332]
[1730819753278,0.40716,2456.7,2456.3,3.2332]
[1730819753484,3.2078,2456.9,2456.3,2.826]
[1730819753676,1.0175,2457.7,2456.3,2.826]
[1730819753677,0.40711,2457.0,2456.5,0.40718]
[1730819753876,0.40711,2457.0,2456.4,3.2078]
[1730819753877,3.2078,2457.2,2456.6,0.40715]
[1730819754073,3.2078,2457.2,2456.4,3.2078]
[1730819754478,0.40709,2457.1,2456.7,0.40714]
[1730819754673,3.2078,2457.5,2456.7,3.2078]
[1730819754884,3.2078,2457.5,2456.8,0.40713]
[1730819754885,0.40706,2457.3,2456.8,0.40713]
[1730819755076,3.2078,2457.5,2457.0,0.40709]
[1730819755077,0.40704,2457.4,2457.0,0.40709]
[1730819755277,5.8689,2457.8,2457.5,0.407]
[1730819755484,5.8689,2457.8,2457.2,4.3936336]
[1730819755485,3.2078,2457.8,2457.2,4.3936336]
[1730819755685,0.40699,2457.7,2457.3,0.40704]
[1730819756074,0.407,2457.6,2457.2,0.40706]
[1730819756385,3.2078,2457.8,2457.1,2.6914]
[1730819756589,3.2078,2457.8,2457.0,3.2078]
[1730819757091,0.40702,2457.5,2457.1,0.40707]
[1730819757582,3.2078,2457.8,2457.0,3.2078]
[1730819757989,0.40701,2457.6,2457.1,0.40708]
[1730819758281,3.2078,2457.8,2457.2,4.3936336]
[1730819758487,3.2078,2457.8,2457.5,0.407]
[1730819758680,0.40693,2458.1,2457.7,0.40697]
[1730819758881,40.8,2458.4,2457.6,3.2078]
[1730819759384,40.8,2458.4,2457.9,0.40694]
[1730819759584,0.40692,2458.1,2457.7,0.40697]
[1730819760287,40.8,2458.4,2457.6,3.2078]
[1730819760584,0.4069,2458.2,2457.6,3.2078]
[1730819760783,40.8,2458.4,2457.9,0.40695]
[1730819761087,0.40687,2458.4,2458.0,0.40692]
[1730819761288,0.40687,2458.4,2457.9,3.2078]
[1730819761289,5.8799,2458.8,2458.2,4.3936336]
[1730819761489,0.40686,2458.5,2458.2,7.6014336]
[1730819761791,1.01692,2459.0,2458.2,7.6014336]
[1730819762087,1.01692,2459.0,2458.2,3.2078]
[1730819762296,1.01692,2459.0,2458.6,0.40683]
[1730819762297,0.40678,2459.0,2458.6,0.40683]
[1730819762485,0.40678,2459.0,2458.2,3.2078]
[1730819762486,0.40679,2458.9,2458.2,3.2078]
[1730819762689,43.63154,2459.1,2458.7,0.40681]
[1730819762992,0.01424,2459.1,2459.0,0.40677]
[1730819763187,3.6145,2459.4,2459.0,4.47317]
[1730819763188,3.2078,2459.4,2459.0,4.47317]
[1730819763390,3.2078,2459.4,2458.8,7.6014336]
[1730819763391,0.40671,2459.4,2458.9,0.40678]
[1730819763591,0.40665,2459.7,2459.0,0.40676]
[1730819763783,40.8,2459.9,2459.1,3.2078]
[1730819763985,0.40666,2459.7,2459.3,0.40672]
[1730819764188,0.40666,2459.7,2459.1,3.2078]
[1730819764189,0.40668,2459.6,2459.1,3.61454]
[1730819764395,40.8,2459.9,2459.1,3.61454]
[1730819764396,0.40663,2459.8,2459.3,0.40671]
[1730819764586,0.40667,2459.7,2459.2,0.40672]
[1730819764787,0.40667,2459.6,2459.2,0.40673]
[1730819764988,0.40665,2459.7,2459.3,0.40671]
[1730819765296,40.8,2459.9,2459.1,3.2078]
[1730819765297,0.40664,2459.8,2459.1,3.2078]
[1730819765588,0.40663,2459.8,2459.4,3.2078]
[1730819765896,0.40663,2459.8,2459.4,3.6145]
[1730819766288,40.8,2460.0,2459.4,3.2078]
[1730819766488,41.20661,2460.0,2459.5,0.40668]
[1730819766693,0.40662,2459.9,2459.4,3.2078]
[1730819766888,41.2066,2460.0,2459.4,3.2078]
[1730819767192,41.2066,2460.0,2459.7,0.40664]
[1730819767193,40.8,2460.0,2459.7,0.40664]
[1730819767390,3.61439,2460.1,2459.7,0.40664]
[1730819767596,3.2078,2460.1,2459.5,4.8003136]
[1730819767895,0.40661,2460.0,2459.6,0.40666]
[1730819768090,3.61439,2460.1,2459.7,0.40664]
[1730819768295,3.2078,2460.1,2459.7,3.2078]
[1730819768592,3.2078,2460.5,2460.0,3.2078]
[1730819769686,0.40658,2460.1,2460.0,3.2078]
[1730819769887,3.2078,2460.5,2460.0,3.2078]
[1730819770199,0.40653,2460.4,2460.0,3.2078]
[1730819770387,3.2078,2460.5,2460.0,3.2078]
[1730819770585,43.6225,2460.8,2459.7,2.417]
[1730819770586,3.2078,2460.8,2460.3,3.2078]
[1730819770892,0.40653,2460.5,2460.3,3.2078]
[1730819771295,4.064,2460.4,2460.0,3.2078]
[1730819771496,4.064,2460.4,2459.5,4.3936336]
[1730819771497,0.40662,2459.9,2459.5,8.0081036]
[1730819771697,0.40666,2459.7,2459.5,3.2078]
[1730819771901,3.2078,2459.9,2459.2,8.4258]
[1730819772096,0.40666,2459.7,2459.3,0.40671]
[1730819772298,44.0078,2459.9,2459.2,8.4258]
[1730819772600,41.20663,2459.9,2459.2,8.4258]
[1730819772792,2.7619,2460.6,2459.7,0.40664]
[1730819772793,0.40659,2460.1,2459.7,0.40664]
[1730819773096,0.4066,2460.0,2459.6,3.61446]
[1730819773895,40.8,2460.4,2459.6,3.2078]
[1730819774200,0.40658,2460.2,2459.7,0.40665]
[1730819774393,0.40656,2460.3,2459.9,0.4066]
[1730819774601,0.40655,2460.3,2459.8,0.40662]
[1730819774793,0.40657,2460.2,2459.8,0.40662]
[1730819775299,0.40656,2460.3,2459.9,0.40661]
[1730819775498,40.8,2460.4,2459.7,0.40664]
[1730819775499,0.40659,2460.1,2459.7,0.40664]
[1730819775691,0.40663,2459.9,2459.6,3.2078]
[1730819775897,3.2078,2459.8,2459.2,3.2078]
[1730819776092,0.40669,2459.5,2459.2,3.2078]
[1730819776298,3.2078,2459.8,2459.2,3.2078]
[1730819776299,0.40672,2459.3,2459.2,3.2078]
[1730819776493,0.40669,2459.5,2459.2,3.2078]
[1730819776702,3.2078,2459.8,2458.9,3.2078]
[1730819776897,0.40669,2459.5,2459.1,0.40675]
[1730819777203,0.4067,2459.4,2459.0,0.40676]
[1730819777499,0.40674,2459.2,2458.9,3.2078]
[1730819777703,0.40675,2459.1,2458.9,3.2078]
[1730819777999,3.2078,2459.5,2458.9,3.2078]
[1730819778193,2.5589,2459.8,2459.2,7.6014336]
[1730819778502,3.2078,2460.1,2459.2,7.6014336]
[1730819778692,1.01655,2459.9,2458.9,7.6014336]
[1730819778898,3.2078,2459.8,2458.9,3.2078]
[1730819779107,0.40677,2459.0,2458.9,3.2078]
[1730819779399,3.2078,2459.4,2458.9,3.2078]
[1730819779400,2.80157,2459.4,2458.9,3.2078]
[1730819779601,0.40677,2459.0,2458.9,3.2078]
[1730819780002,2.80157,2459.4,2458.9,3.2078]
[1730819780003,0.40676,2459.1,2458.9,3.2078]
[1730819780203,0.40677,2459.0,2458.9,3.2078]
[1730819780401,0.40675,2459.2,2458.9,3.2078]
[1730819780704,2.80157,2459.4,2458.9,3.2078]
[1730819781006,0.40671,2459.4,2459.0,0.40676]
[1730819781608,3.2078,2459.8,2459.2,3.2078]
[1730819781902,0.40661,2460.0,2459.6,0.40666]
[1730819782099,3.2078,2460.1,2459.5,3.61448]
[1730819782407,0.40664,2459.8,2459.5,3.2078]
[1730819782704,3.2078,2460.1,2459.5,3.61447]
[1730819782705,0.40662,2459.9,2459.5,3.61447]
[1730819782897,0.40661,2460.0,2459.6,0.40666]
[1730819783098,3.2078,2460.1,2459.5,3.2078]
[1730819783401,0.4066,2460.0,2459.5,3.2078]
[1730819783900,3.61439,2460.1,2459.7,0.40664]
[1730819784096,0.40658,2460.2,2459.8,0.40663]
[1730819784295,3.68466,2460.9,2459.9,0.40662]
[1730819784296,0.40654,2460.4,2459.9,0.40662]
[1730819784496,0.40654,2460.4,2460.0,4.8002236]
[1730819784696,4.22396,2460.9,2460.0,4.3936336]
[1730819784905,0.40656,2460.3,2460.0,4.3936336]
[1730819785110,0.40657,2460.2,2459.8,3.61442]
[1730819785298,0.40656,2460.3,2460.1,3.2078]
[1730819785701,0.40657,2460.2,2460.1,3.2078]
[1730819785901,0.4066,2460.0,2459.8,3.2078]
[1730819786207,0.40662,2459.9,2459.8,3.2078]
[1730819786500,4.47222,2459.9,2459.8,3.2078]
[1730819786896,4.47222,2459.9,2459.5,2.334]
[1730819786897,0.40665,2459.8,2459.5,2.334]
[1730819787209,0.40667,2459.6,2459.5,2.334]
[1730819787901,4.0656,2459.6,2459.2,3.2078]
[1730819788104,40.8,2459.7,2458.7,3.2078]
[1730819788105,0.40677,2459.0,2458.7,3.2078]
[1730819788401,0.40682,2458.7,2458.4,3.2078]
[1730819788610,0.40682,2458.7,2458.2,2.98949]
[1730819789400,2.815,2459.1,2458.2,2.5826]
[1730819789706,0.40682,2458.7,2458.2,2.98949]
[1730819790201,0.40681,2458.8,2458.5,3.2078]
[1730819790401,2.815,2459.1,2458.5,3.2078]
[1730819790605,2.815,2459.1,2458.1,3.2078]
[1730819790803,0.40686,2458.5,2458.1,3.2078]
[1730819791400,0.40688,2458.3,2458.1,3.2078]
[1730819791597,2.815,2459.1,2457.7,4.3936336]
[1730819791598,3.2078,2458.6,2457.7,4.3936336]
[1730819791902,3.2078,2458.6,2457.6,2.335]
[1730819791903,0.40696,2457.9,2457.6,2.335]
[1730819792206,0.40697,2457.8,2457.6,2.335]
[1730819793003,0.40694,2458.0,2457.7,4.0688]
[1730819793205,5.8289,2458.3,2457.6,2.335]
[1730819793411,0.40695,2457.9,2457.6,2.335]
[1730819794208,3.2078,2458.3,2457.7,7.6014336]
[1730819794412,0.40692,2458.1,2457.7,3.61478]
[1730819794707,0.40687,2458.4,2458.0,0.40693]
[1730819795008,2.6211,2458.8,2458.1,4.3936336]
[1730819795210,3.2078,2458.9,2458.4,3.2078]
[1730819795211,0.40682,2458.7,2458.4,3.2078]
[1730819795504,0.40685,2458.5,2458.3,3.2078]
[1730819795705,3.2078,2458.9,2458.0,3.2078]
[1730819796005,0.40682,2458.7,2458.3,0.40688]
[1730819796206,0.40683,2458.6,2458.2,0.40689]
[1730819796409,3.2078,2458.9,2458.0,3.2078]
[1730819796605,0.40682,2458.7,2458.3,3.61467]
[1730819797400,3.2078,2458.9,2458.3,3.2078]
[1730819797805,1.01713,2458.5,2457.5,5.8316]
[1730819798006,3.2078,2458.3,2457.5,3.2078]
[1730819798205,0.40697,2457.8,2457.5,3.2078]
[1730819798508,1.01738,2457.9,2456.9,0.20004057]
[1730819798707,0.40699,2457.7,2456.8,3.2078]
[1730819798912,0.40697,2457.8,2457.3,0.40703]
[1730819799111,0.40697,2457.8,2457.1,3.2078]
[1730819799308,0.40697,2457.8,2457.3,0.40703]
[1730819799611,3.2078,2458.0,2457.5,3.2078]
[1730819799814,0.40695,2457.9,2457.5,3.2078]
[1730819799999,3.2078,2458.3,2457.5,3.2078]
[1730819800202,0.40688,2458.4,2457.9,0.40693]
[1730819800709,3.2078,2458.6,2457.8,3.61476]
[1730819800909,0.40685,2458.5,2457.8,3.61476]
[1730819801102,0.40688,2458.4,2457.9,0.40694]
[1730819801411,3.2078,2458.6,2457.8,3.2078]
[1730819801412,0.40688,2458.3,2457.8,3.61475]
[1730819801705,1.01704,2458.8,2457.4,9.5027336]
[1730819801706,3.2078,2458.0,2457.4,3.2078]
[1730819801906,3.2078,2458.0,2457.0,3.2078]
[1730819802207,3.2078,2458.0,2456.8,10.73330652]
[1730819802208,0.40707,2457.2,2456.8,3.09422]
[1730819802408,0.40707,2457.2,2456.8,0.40712]
[1730819802607,0.40706,2457.3,2456.8,0.40712]
[1730819802813,0.40706,2457.3,2456.7,8.4542]
[1730819803114,0.40705,2457.3,2457.0,3.2078]
[1730819803407,3.2078,2457.7,2456.8,4.3936336]
[1730819803613,3.2078,2457.7,2457.0,3.2078]
[1730819803817,1.0175,2457.6,2456.7,8.4542]
[1730819804018,0.40706,2457.3,2456.8,0.40712]
[1730819804210,0.407,2457.6,2456.8,0.40712]
[1730819804409,3.2078,2457.7,2456.8,0.40712]
[1730819804710,0.40706,2457.3,2456.9,0.40711]
[1730819804907,3.2078,2457.7,2456.8,4.3936336]
[1730819805212,5.1851,2457.9,2456.8,4.3936336]
[1730819805411,0.40707,2457.2,2457.0,3.2078]
[1730819805609,3.2078,2457.7,2457.0,3.2078]
[1730819805811,3.2078,2457.7,2456.8,4.3936336]
[1730819806015,0.40705,2457.3,2456.8,4.3936336]
[1730819806209,0.40705,2457.3,2456.9,0.4071]
[1730819806518,0.40707,2457.2,2456.8,4.8007536]
[1730819806716,0.40708,2457.1,2456.7,3.23154]
[1730819806905,0.40708,2457.1,2456.9,3.2078]
[1730819807109,0.40707,2457.2,2456.7,2.8244]
[1730819807315,0.40705,2457.3,2456.9,3.6149]
[1730819807510,3.2078,2457.7,2456.9,3.2078]
[1730819807711,3.2078,2457.4,2456.8,3.2078]
[1730819808011,3.2078,2457.0,2455.7,4.3936336]
[1730819808213,3.2078,2456.4,2455.7,3.2078]
[1730819808415,3.2078,2456.4,2455.4,3.2078]
[1730819808717,0.40728,2455.9,2455.4,3.61516]
[1730819808920,3.2078,2456.4,2455.4,3.2078]
[1730819809418,0.40727,2456.0,2455.5,0.40734]
[1730819809719,0.40727,2456.0,2455.4,3.61515]
[1730819809920,0.40727,2456.0,2455.5,0.40734]
[1730819810620,0.40733,2455.6,2455.4,3.2078]
[1730819810821,0.40731,2455.8,2455.4,3.2078]
[1730819811217,0.40728,2455.9,2455.4,3.2078]
[1730819811516,0.40731,2455.8,2455.4,3.2078]
[1730819811816,0.40732,2455.7,2455.4,3.2078]
[1730819812119,4.072,2455.8,2455.2,1.05117292]
[1730819812325,0.40738,2455.3,2455.2,1.05117292]
[1730819812721,0.40737,2455.4,2455.2,1.05117292]
[1730819812917,0.40738,2455.3,2455.2,1.05117292]
[1730819813324,4.48018,2455.3,2455.2,1.05117292]
[1730819813529,7.68798,2455.3,2455.2,1.05117292]
[1730819814124,3.2078,2455.3,2454.7,3.2078]
[1730819814331,3.61518,2455.3,2454.9,0.40743]
[1730819814531,3.61518,2455.3,2454.7,3.2078]
[1730819814532,3.2078,2455.3,2454.7,3.2078]
[1730819814826,3.2078,2455.3,2455.1,0.40741]
[1730819815026,2.8043,2455.8,2455.0,3.2078]
[1730819815331,3.2078,2455.9,2455.5,0.40734]
[1730819815529,3.2078,2455.9,2455.3,3.2078]
[1730819815530,3.2078,2455.9,2455.6,0.40732]
[1730819815829,2.8396,2456.4,2455.9,0.40727]
[1730819815830,0.40722,2456.3,2455.9,0.40727]
[1730819816032,0.40727,2456.0,2455.6,0.40732]
[1730819816230,2.8396,2456.4,2455.3,3.2078]
[1730819816434,2.8396,2456.4,2455.3,4.22625]
[1730819816628,0.40724,2456.2,2455.8,0.40729]
[1730819816829,0.40725,2456.1,2455.6,3.2078]
[1730819817028,0.40725,2456.1,2455.8,0.40729]
[1730819817234,2.8396,2456.4,2455.6,3.2078]
[1730819817537,0.4072,2456.4,2455.9,3.2078]
[1730819817831,0.40722,2456.3,2456.0,0.40726]
[1730819818222,0.4072,2456.4,2456.0,0.40726]
[1730819818429,0.4072,2456.4,2455.4,4.3936336]
[1730819818430,3.2078,2456.5,2455.6,3.2078]
[1730819818926,0.40723,2456.2,2455.9,0.40727]
[1730819819126,0.40725,2456.1,2455.8,0.40729]
[1730819819322,0.40725,2456.1,2455.6,3.2078]
[1730819819323,0.40726,2456.0,2455.7,0.40731]
[1730819819538,3.2078,2456.5,2455.3,4.22625]
[1730819819730,0.40726,2456.1,2455.3,4.22625]
[1730819819935,0.40724,2456.2,2455.6,3.2078]
[1730819820136,3.2078,2456.5,2455.6,3.2078]
[1730819820534,0.40721,2456.4,2456.0,0.40726]
[1730819820731,3.2078,2456.5,2455.6,3.2078]
[1730819820928,0.40728,2455.9,2455.6,3.61512]
[1730819821130,3.2078,2456.4,2455.3,3.2078]
[1730819821329,3.2078,2456.4,2455.2,0.19862311]
[1730819821330,3.2078,2456.4,2455.7,3.2078]
[1730819821532,3.2078,2456.4,2456.0,3.2078]
[1730819821735,3.615,2456.4,2456.0,3.2078]
[1730819822032,3.615,2456.4,2456.0,3.61505]
[1730819822033,0.40721,2456.3,2456.0,3.61505]
[1730819822237,3.2078,2456.4,2456.0,3.2078]
[1730819822432,0.40725,2456.1,2456.0,3.2078]
[1730819822641,0.40725,2456.1,2455.2,0.40739]
[1730819822642,3.2078,2456.1,2455.2,0.40739]
[1730819822935,5.4135,2456.0,2455.1,5.4336]
[1730819823138,0.40736,2455.5,2455.1,5.841]
[1730819823434,3.2078,2455.8,2455.0,3.2078]
[1730819823435,0.40739,2455.3,2455.0,3.2078]
[1730819823639,1.01829,2455.7,2455.0,3.2078]
[1730819823845,3.2078,2455.2,2454.4,5.3977]
[1730819824132,0.40751,2454.5,2454.0,0.40759]
[1730819824337,3.2078,2454.9,2453.8,3.2078]
[1730819824532,0.40755,2454.3,2453.8,3.2078]
[1730819824745,0.40755,2454.3,2453.4,0.40769]
[1730819824746,0.40756,2454.2,2453.4,0.40769]
[1730819824933,0.40756,2454.2,2453.6,3.61546]
[1730819825132,0.40753,2454.4,2453.6,3.2078]
[1730819825339,3.2078,2454.5,2453.9,3.2078]
[1730819825526,0.4075,2454.6,2453.9,3.2078]
[1730819825729,8.6272,2454.8,2453.9,3.2078]
[1730819825937,8.6272,2454.8,2454.1,0.40758]
[1730819825938,0.40749,2454.7,2454.1,0.40758]
[1730819826129,5.4194,2454.8,2454.2,0.40755]
[1730819826334,0.40748,2454.7,2454.1,0.40757]
[1730819826531,8.6272,2454.8,2453.9,3.2078]
[1730819826837,8.6272,2454.8,2453.6,3.2078]
[1730819826838,3.2078,2454.2,2453.6,3.2078]
[1730819827133,2.7663,2454.1,2453.4,0.40769]
[1730819827342,0.4076,2454.0,2453.4,0.40769]
[1730819827529,40.8,2453.9,2453.7,0.40764]
[1730819827731,3.2078,2454.4,2454.1,0.40757]
[1730819827934,3.2078,2454.4,2454.0,3.2078]
[1730819828544,3.2078,2454.4,2454.0,3.61538]